bitfinex/quotes_ETHUSD_20230405
["timestamp","ask_amount","ask_price","bid_price","bid_amount"]
[1680652800991,24.77697177,1870.7,1870.6,0.09646398]
[1680652801556,19.77697177,1870.7,1870.6,0.09646398]
[1680652801957,24.77697177,1870.7,1870.6,0.09646398]
[1680652804083,24.24242177,1870.7,1870.6,0.09646398]
[1680652807461,24.77697177,1870.7,1870.6,0.09646398]
[1680652807874,30.63226589,1870.7,1870.6,0.09646398]
[1680652808073,32.02422349,1870.7,1870.6,0.09646398]
[1680652808275,43.87127312,1870.7,1870.6,0.09646398]
[1680652808539,43.03018151,1870.7,1870.6,0.09646398]
[1680652810025,42.49563151,1870.7,1870.6,0.09646398]
[1680652810392,43.33667098,1870.7,1870.6,0.09646398]
[1680652810614,41.09853647,1870.7,1870.6,0.09646398]
[1680652811642,40.83126647,1870.7,1870.6,0.09646398]
[1680652811799,39.13129099,1870.7,1870.6,0.09646398]
[1680652812608,39.39856099,1870.7,1870.6,0.09646398]
[1680652812809,39.13129099,1870.7,1870.6,0.09646398]
[1680652813008,38.48729099,1870.7,1870.6,0.09646398]
[1680652813704,38.75456099,1870.7,1870.6,0.09646398]
[1680652813896,38.48729099,1870.7,1870.6,0.09646398]
[1680652815308,15.35763858,1870.7,1870.6,0.09646398]
[1680652815498,11.63602218,1870.7,1870.6,0.09646398]
[1680652815703,5.98702218,1870.7,1870.6,0.09646398]
[1680652815912,11.63602218,1870.7,1870.6,0.09646398]
[1680652816114,12.7996244,1870.7,1870.6,0.09646398]
[1680652816321,13.72753446,1870.7,1870.6,0.09646398]
[1680652816607,12.7996244,1870.7,1870.6,0.09646398]
[1680652816795,14.78545793,1870.7,1870.6,0.09646398]
[1680652816998,14.51818793,1870.7,1870.6,0.09646398]
[1680652817199,17.51818793,1870.7,1870.6,0.09646398]
[1680652817724,17.78545793,1870.7,1870.6,0.09646398]
[1680652817929,17.51818793,1870.7,1870.6,0.09646398]
[1680652818838,17.78545793,1870.7,1870.6,0.09646398]
[1680652819039,17.51818793,1870.7,1870.6,0.09646398]
[1680652819340,10.70558571,1870.7,1870.6,0.09646398]
[1680652819542,14.86602218,1870.7,1870.6,0.09646398]
[1680652837150,9.21702218,1870.7,1870.6,0.09646398]
[1680652837777,14.86602218,1870.7,1870.6,0.09646398]
[1680652838280,9.21702218,1870.7,1870.6,0.09646398]
[1680652838581,9.21335318,1870.7,1870.6,0.09646398]
[1680652838743,6.21335318,1870.7,1870.6,0.09646398]
[1680652843957,11.86235318,1870.7,1870.6,0.09646398]
[1680652844353,13.0485885,1870.7,1870.6,0.09646398]
[1680652846042,11.86235318,1870.7,1870.6,0.09646398]
[1680652859304,12.12594987,1870.7,1870.6,0.09646398]
[1680652859505,14.14908831,1870.7,1870.6,0.09646398]
[1680652859713,17.08052431,1870.7,1870.6,0.09646398]
[1680652861553,16.54597431,1870.7,1870.6,0.09646398]
[1680652861757,16.27870431,1870.7,1870.6,0.09646398]
[1680652861917,18.59629289,1870.7,1870.6,0.09646398]
[1680652862330,18.86356289,1870.7,1870.6,0.09646398]
[1680652863148,18.59629289,1870.7,1870.6,0.09646398]
[1680652863302,18.86356289,1870.7,1870.6,0.09646398]
[1680652863506,19.39811289,1870.7,1870.6,0.09646398]
[1680652868271,20.04311289,1870.7,1870.6,0.09646398]
[1680652868478,13.79209369,1870.6,1870.5,0.1]
[1680652868639,13.79209369,1870.4,1870.2,0.1]
[1680652868842,13.79209369,1870.4,1869.6,0.1]
[1680652868843,13.79209369,1869.9,1869.6,0.1]
[1680652869038,3.14309369,1869.7,1869.6,0.106]
[1680652869238,5.90911587,1869.7,1869.6,0.106]
[1680652869458,5.91111587,1869.7,1869.6,0.1]
[1680652869865,2.76802218,1869.7,1869.6,0.1]
[1680652870023,2.76602218,1869.7,1869.6,0.1]
[1680652870561,2.99602218,1869.7,1869.6,0.1]
[1680652871883,2.99602218,1869.7,1869.6,0.34069]
[1680652872968,2.99602218,1869.7,1869.6,0.34269]
[1680652873345,2.99602218,1869.7,1869.6,0.102]
[1680652873564,2.99602218,1869.7,1869.6,0.1]
[1680652887866,7.7489461,1869.7,1869.6,0.1]
[1680652888059,10.4835261,1869.7,1869.6,0.1]
[1680652888470,10.7509461,1869.7,1869.6,0.1]
[1680652888664,10.4835261,1869.7,1869.6,0.1]
[1680652888992,16.1325261,1869.7,1869.6,0.1]
[1680652891290,16.12873575,1869.7,1869.6,0.1]
[1680652892853,9.21323183,1869.7,1869.6,0.1]
[1680652893291,9.74057493,1869.7,1869.6,0.1]
[1680652898469,6.52157493,1869.7,1869.6,0.1]
[1680652898674,0.5293431,1869.7,1869.6,0.82207]
[1680652898856,0.5273431,1869.7,1869.6,0.34069]
[1680652899079,0.5273431,1869.7,1869.6,0.207969]
[1680652899758,0.5273431,1869.7,1869.6,0.448659]
[1680652900158,0.5273431,1869.7,1869.6,0.207969]
[1680652900377,3.29336528,1869.7,1869.6,0.207969]
[1680652900606,3.29336528,1869.7,1869.6,0.1]
[1680652902799,3.52336528,1869.7,1869.6,0.1]
[1680652906607,3.52336528,1869.7,1869.6,0.34069]
[1680652911006,3.52336528,1869.7,1869.6,0.1]
[1680652912496,3.52042874,1869.7,1869.6,0.1]
[1680652915431,3.52042874,1869.7,1869.6,0.09678874]
[1680652917017,3.52042874,1869.7,1869.6,0.33747874]
[1680652917815,3.52042874,1869.7,1869.6,0.09678874]
[1680652918016,3.52042874,1869.7,1869.6,0.33747874]
[1680652918519,3.52042874,1869.7,1869.6,0.09678874]
[1680652922426,3.51304252,1869.7,1869.6,0.09678874]
[1680652922618,3.50690833,1869.7,1869.6,0.09678874]
[1680652926324,3.51304252,1869.7,1869.6,0.09678874]
[1680652933022,3.24388552,1869.7,1869.6,0.09678874]
[1680652933413,3.48087039,1869.7,1869.6,0.09678874]
[1680652936302,3.82915743,1869.7,1869.6,0.09678874]
[1680652936708,4.47415743,1869.7,1869.6,0.09678874]
[1680652936921,13.34215743,1869.7,1869.6,0.09678874]
[1680652937121,16.61157743,1869.7,1869.6,0.09678874]
[1680652939642,16.61157743,1869.7,1869.6,0.0893003]
[1680652942052,10.69515743,1869.7,1869.6,0.0893003]
[1680652942752,10.34687039,1869.7,1869.6,0.0893003]
[1680652943152,15.99587039,1869.7,1869.6,0.0893003]
[1680652945867,10.34687039,1869.7,1869.6,0.0893003]
[1680652948933,10.61429039,1869.7,1869.6,0.0893003]
[1680652949959,16.27129039,1869.7,1869.6,0.0893003]
[1680652950163,18.50507043,1869.7,1869.6,0.0893003]
[1680652950339,24.03991043,1869.7,1869.6,0.0893003]
[1680652952075,24.68391043,1869.7,1869.6,0.0893003]
[1680652957455,24.69191043,1869.7,1869.6,0.0893003]
[1680652957654,26.18100315,1869.7,1869.6,0.0893003]
[1680652958598,26.17300315,1869.7,1869.6,0.0893003]
[1680652959458,25.61240736,1869.7,1869.6,0.0893003]
[1680652959873,26.17300315,1869.7,1869.6,0.0893003]
[1680652960073,25.61240736,1869.7,1869.6,0.0893003]
[1680652963486,28.86379803,1869.7,1869.6,0.0003003]
[1680652963697,10.649,1869.5,1869.4,0.0003003]
[1680652963908,26.51473289,1869.5,1869.4,0.0003003]
[1680652964068,27.90752777,1869.5,1869.4,0.0003003]
[1680652964269,28.73545903,1869.5,1869.4,0.0003003]
[1680652964531,13.868,1869.3,1869.2,0.1]
[1680652964802,22.80829218,1869.3,1869.2,0.1]
[1680652965301,23.44004837,1869.3,1869.2,0.03682438]
[1680652965518,32.17769218,1869.3,1869.2,0.03682438]
[1680652966253,32.71264218,1869.3,1869.2,0.03682438]
[1680652966374,33.34088861,1869.3,1868.6,0.24681]
[1680652966571,3.864,1869.1,1868.6,0.837647]
[1680652966803,5.76602218,1869.0,1868.6,0.837647]
[1680652967014,5.99802218,1869.0,1868.6,0.837647]
[1680652968505,5.99802218,1869.0,1868.7,0.10569922]
[1680652968727,6.00402218,1869.0,1868.7,0.05569922]
[1680652968919,6.00602218,1869.0,1868.7,0.05569922]
[1680652972278,0.62741511,1868.9,1868.7,0.05569922]
[1680652972483,3.39343729,1868.9,1868.7,0.05569922]
[1680652973688,3.39343729,1868.9,1868.7,0.29649922]
[1680652974288,3.39343729,1868.9,1868.7,0.05569922]
[1680652979404,0.62741511,1868.9,1868.8,0.641]
[1680652979600,0.62741511,1868.9,1868.8,2.46847092]
[1680652980308,0.008,1869.4,1868.8,1.50529092]
[1680652980513,2.76602218,1869.3,1868.8,6.47039092]
[1680652980723,2.76602218,1869.3,1868.9,0.64703909]
[1680652980927,2.76602218,1869.3,1869.0,0.24076]
[1680652981376,0.00212829,1869.2,1869.0,0.24076]
[1680652981672,2.76815047,1869.2,1869.0,0.24076]
[1680652982449,2.76602218,1869.2,1869.0,0.24076]
[1680652982647,2.76602218,1869.2,1869.0,0.37769591]
[1680652984271,0.008,1869.3,1869.0,1.50423591]
[1680652984491,3.008,1869.4,1869.0,1.50423591]
[1680652984644,5.77402218,1869.4,1869.0,1.50423591]
[1680652984846,5.77602218,1869.4,1869.0,1.52616691]
[1680652985075,5.77602218,1869.4,1869.1,0.39336669]
[1680652985491,0.00292964,1869.3,1869.1,0.39336669]
[1680652986478,0.58663027,1869.2,1869.1,0.39336669]
[1680652988354,0.58663027,1869.2,1869.1,0.15261669]
[1680652989792,0.58663027,1869.2,1869.1,0.39336669]
[1680652989978,0.58663027,1869.2,1869.1,0.15261669]
[1680652990182,0.58382879,1869.2,1869.1,0.15261669]
[1680652990385,0.58382879,1869.2,1869.1,0.39336669]
[1680652990583,0.58382879,1869.2,1869.0,0.80386691]
[1680652990764,0.58382879,1869.2,1869.0,0.021931]
[1680652991372,6.03549218,1869.4,1869.0,0.021931]
[1680652991576,2.99602218,1869.3,1869.0,0.021931]
[1680652992391,0.5862735,1869.2,1869.0,0.021931]
[1680652993765,0.5862735,1869.2,1869.0,0.907691]
[1680652993965,0.5862735,1869.2,1869.0,0.262691]
[1680652994476,0.5862735,1869.2,1869.0,1.389231]
[1680652994678,0.5862735,1869.2,1869.1,1.8242131]
[1680652995277,0.008,1869.7,1869.1,1.8242131]
[1680652995490,29.932,1869.8,1869.1,6.8680131]
[1680652995491,2.76602218,1869.6,1869.1,6.8680131]
[1680652995692,2.76602218,1869.6,1869.1,6.8740131]
[1680652995905,2.76602218,1869.6,1869.1,6.8760131]
[1680652996220,2.76602218,1869.6,1869.3,0.24072]
[1680652996369,0.00392872,1869.5,1869.3,0.24072]
[1680652996564,2.7699509,1869.5,1869.3,0.24072]
[1680652996770,2.7699509,1869.5,1869.3,0.72218]
[1680652998417,0.53995428,1869.4,1869.3,0.72218]
[1680652998723,0.53995428,1869.4,1869.3,0.86315813]
[1680652999275,0.54308182,1869.4,1869.3,0.86315813]
[1680652999475,0.53995428,1869.4,1869.3,0.86315813]
[1680652999809,0.53995428,1869.4,1869.3,0.38170813]
[1680653001121,0.53995428,1869.4,1869.3,0.14097813]
[1680653001278,0.54308182,1869.4,1869.2,0.68760131]
[1680653002486,0.53995428,1869.4,1869.2,0.68760131]
[1680653003267,0.53995428,1869.4,1869.1,5.45340294]
[1680653005287,0.53995428,1869.4,1869.1,5.93491294]
[1680653005487,0.00232627,1869.3,1869.1,5.93491294]
[1680653006211,0.00232627,1869.3,1869.1,5.9129831]
[1680653006373,2.99602218,1869.3,1869.1,0.008]
[1680653006578,2.99602218,1869.3,1868.9,0.24077]
[1680653006772,2.76602218,1869.2,1868.8,0.48759]
[1680653006972,3.0656244,1869.2,1868.8,0.24679]
[1680653007208,2.70834149,1869.2,1868.8,0.24479]
[1680653007508,2.70834149,1869.2,1868.8,0.24679]
[1680653008127,2.70834149,1869.2,1868.8,0.24479]
[1680653008514,3.35334149,1869.2,1868.7,0.008]
[1680653008735,0.23,1869.1,1868.5,11.28388]
[1680653009029,2.76602218,1869.0,1868.6,0.2408]
[1680653009329,2.76602218,1869.0,1868.6,0.2448]
[1680653010026,2.76602218,1869.0,1868.6,0.2428]
[1680653010229,0.002,1869.1,1868.6,1.877708]
[1680653010396,2.76602218,1869.1,1868.6,1.875708]
[1680653010598,2.76602218,1869.1,1868.6,1.879708]
[1680653010905,2.76602218,1869.1,1868.6,1.877708]
[1680653011085,2.76602218,1869.1,1868.7,0.4285708]
[1680653016221,2.76602218,1869.1,1868.7,0.9101808]
[1680653016415,0.53981436,1869.0,1868.7,0.9101808]
[1680653018724,0.53981436,1869.0,1868.7,0.4285708]
[1680653024124,0.53981436,1869.0,1868.7,0.9101808]
[1680653024321,0.53981436,1869.0,1868.8,0.09101808]
[1680653024525,0.53981436,1869.0,1868.8,0.33180808]
[1680653030813,0.53981436,1869.0,1868.7,0.9101708]
[1680653033411,0.53981436,1869.0,1868.7,0.4285608]
[1680653034703,0.53981436,1869.0,1868.7,0.9101708]
[1680653041848,0.53981436,1869.0,1868.7,0.4285608]
[1680653043755,3.30583654,1869.0,1868.6,1.4220037]
[1680653044050,3.30583654,1869.0,1868.7,0.2408]
[1680653045070,0.32635622,1868.8,1868.4,0.1]
[1680653045226,2.76602218,1868.7,1868.4,0.34084]
[1680653046448,0.54732231,1868.6,1868.4,0.34084]
[1680653047676,0.53517343,1868.6,1868.4,0.34084]
[1680653048542,0.002,1868.8,1868.4,0.423095]
[1680653048746,2.76602218,1868.8,1868.5,0.02193688]
[1680653048930,2.76602218,1868.8,1868.6,0.24082]
[1680653049454,0.53036052,1868.7,1868.6,0.24082]
[1680653049816,0.53036052,1868.7,1868.5,0.74441688]
[1680653051476,4.9909,1869.0,1868.5,0.74441688]
[1680653051633,4.9889,1869.0,1868.7,0.2408]
[1680653052154,4.9809,1869.0,1868.7,0.2408]
[1680653052352,4.9889,1869.0,1868.7,0.2408]
[1680653054464,4.9889,1869.0,1868.6,0.79688169]
[1680653054465,4.9809,1869.0,1868.6,0.79688169]
[1680653055464,0.53224366,1868.9,1868.7,0.32048817]
[1680653055631,0.53224366,1868.9,1868.7,0.2408]
[1680653055831,0.53224366,1868.9,1868.6,0.55607169]
[1680653056040,0.53224366,1868.9,1868.7,0.2408]
[1680653056765,0.53224366,1868.9,1868.6,0.79687169]
[1680653057928,0.53224366,1868.9,1868.7,0.07968717]
[1680653058130,0.53224366,1868.9,1868.7,0.80209717]
[1680653070340,0.52875345,1868.9,1868.7,0.80409717]
[1680653070652,0.52875345,1868.9,1868.7,0.80209717]
[1680653070852,0.52875345,1868.9,1868.8,0.08020972]
[1680653071065,0.52875345,1868.9,1868.8,0.32099972]
[1680653071576,4.155,1869.3,1868.8,0.32099972]
[1680653071744,2.76602218,1869.2,1868.8,0.24079]
[1680653072254,0.642,1869.0,1868.7,0.2408]
[1680653072446,0.642,1869.0,1868.6,0.7443857]
[1680653072636,0.642,1869.0,1868.6,1.30146427]
[1680653073535,2.76602218,1868.9,1868.5,0.24283]
[1680653073771,2.76602218,1868.9,1868.4,0.34083]
[1680653074170,0.23,1868.8,1868.4,0.82252]
[1680653074382,2.99602218,1868.8,1868.4,0.82252]
[1680653074546,3.63632662,1868.8,1868.4,0.82252]
[1680653075456,2.99602218,1868.8,1868.4,0.82252]
[1680653075777,2.76602218,1868.7,1868.4,0.34083]
[1680653075945,3.41202218,1868.7,1868.4,0.34083]
[1680653077184,3.41802218,1868.7,1868.4,0.34083]
[1680653077489,4.30902561,1868.7,1868.4,0.34083]
[1680653077788,4.30902561,1868.7,1868.4,0.82252]
[1680653078476,0.49404803,1868.6,1868.4,0.82252]
[1680653078708,3.26007021,1868.6,1868.4,0.82252]
[1680653086187,0.49404803,1868.6,1868.4,0.82252]
[1680653086421,0.49404803,1868.6,1868.5,0.082252]
[1680653086698,0.49404803,1868.6,1868.5,0.24083]
[1680653087460,0.646,1868.7,1868.5,0.24083]
[1680653088705,4.5997,1868.8,1868.5,0.24083]
[1680653088865,4.5977,1868.8,1868.5,0.24083]
[1680653090226,7.36372218,1868.8,1868.4,0.34083]
[1680653090504,7.36572218,1868.8,1868.4,0.34083]
[1680653090690,9.1426744,1868.8,1868.4,0.1]
[1680653090904,2.76602218,1868.7,1868.4,0.1]
[1680653091211,2.77402218,1868.7,1868.4,0.1]
[1680653091371,3.26694561,1868.7,1868.4,0.1]
[1680653092109,3.91294561,1868.7,1868.4,0.1]
[1680653092311,5.0059366,1868.7,1868.4,0.1]
[1680653092512,5.0079366,1868.7,1868.4,0.1]
[1680653097406,4.99598364,1868.7,1868.4,0.1]
[1680653097606,4.99398364,1868.7,1868.4,0.1]
[1680653098188,3.90099265,1868.7,1868.4,0.1]
[1680653102987,0.646,1868.6,1868.4,0.1]
[1680653103189,3.41202218,1868.6,1868.4,0.1]
[1680653105918,2.76602218,1868.5,1868.4,0.1]
[1680653106121,3.64202218,1868.5,1868.4,0.1]
[1680653106285,4.0708244,1868.5,1868.4,0.1]
[1680653106485,4.54279287,1868.5,1868.4,0.1]
[1680653112033,0.47196847,1868.5,1868.4,0.1]
[1680653117440,3.65031209,1868.7,1868.4,0.1]
[1680653117642,2.76602218,1868.6,1868.4,0.1]
[1680653121414,0.45674526,1868.5,1868.4,0.1]
[1680653125212,0.45674526,1868.5,1868.4,0.82253]
[1680653125438,0.45674526,1868.5,1868.4,0.904783]
[1680653126464,3.008,1868.7,1868.4,0.90100292]
[1680653126647,4.5997,1868.8,1868.4,0.81874992]
[1680653126817,7.36372218,1868.8,1868.4,0.81874992]
[1680653127019,7.36572218,1868.8,1868.4,0.81874992]
[1680653127753,7.35772218,1868.8,1868.4,0.81874992]
[1680653128154,7.36572218,1868.8,1868.4,0.81874992]
[1680653130267,7.35772218,1868.8,1868.4,0.81874992]
[1680653130461,7.35772218,1868.8,1868.4,0.90062491]
[1680653130659,7.36572218,1868.8,1868.4,0.81874992]
[1680653130830,7.35772218,1868.8,1868.4,0.81874992]
[1680653131533,2.76602218,1868.7,1868.4,0.09621992]
[1680653131734,0.23,1868.6,1868.4,0.33705992]
[1680653131969,2.99602218,1868.6,1868.4,0.33705992]
[1680653132348,2.99602218,1868.6,1868.5,0.16998876]
[1680653134290,0.002,1868.7,1868.5,0.16998876]
[1680653134592,2.99602218,1868.7,1868.5,0.41081876]
[1680653139878,5.2457,1868.8,1868.5,0.89247876]
[1680653140089,8.00372218,1868.8,1868.5,0.89247876]
[1680653140453,8.00372218,1868.8,1868.5,0.41081876]
[1680653140638,5.2377,1868.8,1868.5,0.41081876]
[1680653142343,5.2457,1868.8,1868.5,0.41081876]
[1680653142983,5.2377,1868.8,1868.5,0.41081876]
[1680653144883,5.2457,1868.8,1868.5,0.41081876]
[1680653146482,5.2377,1868.8,1868.5,0.41081876]
[1680653147126,4.5917,1868.8,1868.5,0.41081876]
[1680653147411,4.5897,1868.8,1868.5,0.41081876]
[1680653149179,4.58728128,1868.8,1868.5,0.51166576]
[1680653149374,4.58728128,1868.8,1868.5,0.99332576]
[1680653151129,0.002,1868.9,1868.5,0.99332576]
[1680653151434,31.69257649,1869.2,1868.6,0.09933258]
[1680653151435,35.274,1869.2,1868.6,0.09933258]
[1680653151622,8.11002218,1869.2,1868.7,0.7224]
[1680653152009,7.46902218,1869.2,1868.7,0.7224]
[1680653152795,2.76802218,1869.2,1868.8,0.01973712]
[1680653153010,2.76602218,1869.2,1868.9,0.72234]
[1680653155202,2.76602218,1869.2,1868.9,0.24078]
[1680653163108,2.76602218,1869.2,1868.8,0.33473083]
[1680653166370,2.76602218,1869.2,1868.9,0.46712619]
[1680653166719,4.3309844,1869.2,1868.9,0.46712619]
[1680653166853,2.76602218,1869.1,1868.9,0.46712619]
[1680653167041,3.67953218,1869.1,1868.9,0.46712619]
[1680653167243,3.41202218,1869.1,1868.9,0.46712619]
[1680653167466,0.23,1869.0,1868.6,0.24682]
[1680653167671,0.23,1869.0,1868.6,0.24082]
[1680653167672,3.3372244,1869.0,1868.6,0.24082]
[1680653167968,3.3372244,1869.0,1868.6,0.24282]
[1680653168350,3.3372244,1869.0,1868.7,0.46817319]
[1680653169396,3.3351786,1869.0,1868.7,0.46817319]
[1680653169717,3.09954004,1868.9,1868.7,0.46817319]
[1680653170019,3.74154004,1868.9,1868.7,0.46817319]
[1680653171257,0.642,1868.9,1868.7,0.46817319]
[1680653171463,9.9442,1869.0,1868.7,1.19058319]
[1680653171464,0.002,1869.0,1868.7,1.19058319]
[1680653171659,7.9721,1869.1,1868.7,0.70897319]
[1680653171967,10.73812218,1869.1,1868.7,0.70897319]
[1680653172285,10.73812218,1869.1,1868.7,0.72871136]
[1680653173296,2.76602218,1869.0,1868.7,0.48791136]
[1680653173496,2.99602218,1869.0,1868.7,0.48791136]
[1680653180230,1.292,1868.8,1868.7,0.46817319]
[1680653180391,4.28802218,1868.8,1868.7,0.46817319]
[1680653180724,5.0437784,1868.8,1868.7,0.46817319]
[1680653180912,5.0457784,1868.8,1868.7,0.46817319]
[1680653184489,0.002,1868.8,1868.7,0.46817319]
[1680653184687,2.76602218,1868.8,1868.7,0.46817319]
[1680653184892,2.99602218,1868.8,1868.7,0.46817319]
[1680653189216,4.55057218,1868.8,1868.7,0.46817319]
[1680653189605,4.28302218,1868.8,1868.7,0.46817319]
[1680653189805,4.79201761,1868.8,1868.7,0.46817319]
[1680653190002,5.05956761,1868.8,1868.7,0.46817319]
[1680653190229,5.06156761,1868.8,1868.7,0.46817319]
[1680653191491,5.06156761,1868.8,1868.7,0.46453432]
[1680653192531,4.79401761,1868.8,1868.4,0.10021992]
[1680653192727,3.41202218,1868.7,1868.4,0.09621992]
[1680653193506,3.41202218,1868.7,1868.5,0.46903336]
[1680653207274,2.76602218,1868.7,1868.5,0.46903336]
[1680653209600,2.76602218,1868.7,1868.5,0.70986336]
[1680653209780,2.76602218,1868.7,1868.5,0.55004169]
[1680653210341,2.76602218,1868.7,1868.5,0.46903336]
[1680653211781,2.76602218,1868.7,1868.5,0.70986336]
[1680653211983,2.76602218,1868.7,1868.5,0.46903336]
[1680653215304,2.76282713,1868.7,1868.5,0.46903336]
[1680653217377,2.76282713,1868.7,1868.5,0.70986336]
[1680653217563,2.76282713,1868.7,1868.5,0.46903336]
[1680653217761,0.01,1868.8,1868.5,0.79047169]
[1680653217962,15.22631209,1868.9,1868.5,1.27213169]
[1680653217963,0.01,1868.9,1868.5,1.27213169]
[1680653218166,0.01,1869.1,1868.5,1.91513169]
[1680653218369,0.01,1869.2,1868.6,0.19151317]
[1680653218691,1.96321225,1869.4,1868.7,7.98059]
[1680653218879,1.96321225,1869.4,1868.7,7.98459]
[1680653218880,1.95321225,1869.4,1868.7,7.98459]
[1680653219090,2.88187115,1869.4,1868.8,0.798459]
[1680653219436,2.88187115,1869.4,1868.9,0.24077]
[1680653219707,2.88187115,1869.4,1868.9,0.72233]
[1680653221285,30.50021567,1869.5,1868.9,1.36433]
[1680653221496,0.01,1869.5,1869.0,0.15616801]
[1680653221672,0.69557561,1869.6,1869.1,0.72225]
[1680653221876,0.56021567,1869.6,1869.1,0.72225]
[1680653222106,1.48879701,1869.6,1869.2,0.072225]
[1680653222305,1.48879701,1869.6,1869.3,0.24072]
[1680653226058,7.47913346,1869.7,1869.3,0.24072]
[1680653226258,0.9285705,1869.6,1869.3,0.24072]
[1680653226452,0.9285705,1869.6,1869.4,0.59789712]
[1680653227418,8.0114486,1869.7,1869.4,0.59789712]
[1680653227631,1.1585774,1869.6,1869.4,0.59789712]
[1680653227840,0.23,1869.6,1869.4,0.59789712]
[1680653229494,2.99602218,1869.6,1869.2,0.072225]
[1680653230225,2.99602218,1869.6,1869.1,5.26144]
[1680653231935,2.99602218,1869.6,1869.1,5.74295]
[1680653234179,0.23,1869.6,1869.1,5.74295]
[1680653235046,0.00231209,1869.5,1869.1,5.26144]
[1680653237393,0.0001317,1869.5,1869.1,5.26544]
[1680653237556,0.0001317,1869.5,1869.1,5.8541813]
[1680653238182,0.0001317,1869.5,1869.1,5.8501813]
[1680653238782,0.0001317,1869.5,1869.1,5.8541813]
[1680653240895,0.0001317,1869.5,1869.1,6.3356913]
[1680653241092,0.0001317,1869.5,1869.2,0.63356913]
[1680653241294,0.0001317,1869.5,1869.3,0.24073]
[1680653243507,0.0001317,1869.5,1869.2,0.87429913]
[1680653245327,0.0001317,1869.5,1869.2,0.87163621]
[1680653254718,0.0001317,1869.5,1869.2,0.24073]
[1680653256546,0.0001317,1869.5,1869.3,0.59813233]
[1680653257713,0.0001317,1869.5,1869.3,0.83886233]
[1680653258099,0.0001317,1869.5,1869.3,0.59813233]
[1680653258428,0.0001317,1869.5,1869.3,0.83886233]
[1680653259928,2.70991594,1869.6,1869.3,0.83886233]
[1680653260227,2.70991594,1869.6,1869.3,0.59813233]
[1680653262438,3.27013161,1869.6,1869.3,0.59813233]
[1680653264438,4.1109772,1869.6,1869.3,0.59813233]
[1680653264643,0.92853009,1869.5,1869.3,0.59813233]
[1680653265942,3.27213161,1869.6,1869.3,0.83886233]
[1680653266245,0.92852577,1869.5,1869.3,0.83886233]
[1680653266542,0.92852577,1869.5,1869.3,0.59813233]
[1680653266743,3.27213161,1869.6,1869.3,0.59813233]
[1680653267075,3.27013161,1869.6,1869.3,0.59813233]
[1680653267269,0.92853188,1869.5,1869.3,0.59813233]
[1680653268279,1.48874755,1869.5,1869.3,0.59813233]
[1680653268751,4.1129772,1869.6,1869.3,0.59813233]
[1680653269057,0.92853465,1869.5,1869.3,0.59813233]
[1680653270929,2.76602218,1869.4,1869.3,0.59813233]
[1680653271146,5.28725204,1869.4,1869.3,0.59813233]
[1680653271324,5.59516763,1869.4,1869.3,0.59813233]
[1680653271656,4.75432204,1869.4,1869.1,0.006]
[1680653271972,0.23,1869.3,1869.1,0.004]
[1680653272130,2.99602218,1869.3,1869.1,0.002]
[1680653272513,2.99602218,1869.3,1869.2,0.57632529]
[1680653279462,2.99602218,1869.3,1869.1,0.002]
[1680653279675,2.99602218,1869.3,1869.0,0.006]
[1680653282864,2.99330913,1869.3,1869.0,0.004]
[1680653283070,2.99330913,1869.3,1868.9,5.1795]
[1680653283271,2.99330913,1869.3,1868.9,5.721528]
[1680653286402,2.99330913,1869.3,1869.0,0.62857963]
[1680653288899,2.99330913,1869.3,1869.0,0.86933963]
[1680653289804,2.99330913,1869.3,1869.0,0.62857963]
[1680653293715,0.002,1869.4,1869.1,0.2626809]
[1680653293892,3.0,1869.4,1869.1,0.15921095]
[1680653294387,4.21621567,1869.5,1869.2,0.6281014]
[1680653294588,6.97223785,1869.5,1869.1,0.39996095]
[1680653294803,3.002,1869.5,1869.1,0.7441909]
[1680653295011,3.57021567,1869.6,1869.1,0.7441909]
[1680653295319,6.32623785,1869.6,1869.1,0.7441909]
[1680653295524,6.32823785,1869.6,1869.1,0.7441909]
[1680653296709,6.33623785,1869.6,1869.1,0.7441909]
[1680653296908,6.33623785,1869.6,1869.2,0.31514909]
[1680653297319,6.32823785,1869.6,1869.2,0.31514909]
[1680653297920,2.76602218,1869.5,1869.2,0.07441909]
[1680653298124,2.76602218,1869.5,1869.1,0.0219309]
[1680653299209,4.23968785,1869.5,1869.1,0.0219309]
[1680653299399,0.23,1869.4,1869.1,0.0219309]
[1680653299597,3.26349218,1869.4,1869.1,0.0219309]
[1680653300120,2.99602218,1869.4,1869.1,0.0219309]
[1680653301617,3.67449218,1869.3,1869.2,0.61769057]
[1680653301921,19.72830351,1869.3,1869.2,0.61769057]
[1680653302086,19.72830351,1869.3,1868.4,0.10221992]
[1680653302087,8.868,1869.1,1868.4,0.10221992]
[1680653302422,5.09175,1868.9,1868.4,0.10221992]
[1680653302622,0.646,1868.7,1868.4,0.10221992]
[1680653302825,2.76602218,1868.6,1868.4,0.10221992]
[1680653302994,2.99602218,1868.6,1868.4,0.10221992]
[1680653305588,2.99602218,1868.6,1868.4,0.34305992]
[1680653306991,2.99602218,1868.6,1868.4,0.10221992]
[1680653308030,2.99602218,1868.6,1868.4,0.34305992]
[1680653308521,2.99602218,1868.6,1868.4,0.10221992]
[1680653308829,3.3604244,1868.6,1868.4,0.10221992]
[1680653309129,3.3604244,1868.6,1868.4,0.09621992]
[1680653310430,3.3604244,1868.6,1868.5,0.53436609]
[1680653312018,4.0014244,1868.6,1868.5,0.53436609]
[1680653318350,3.63702218,1868.6,1868.5,0.53436609]
[1680653322169,2.99602218,1868.6,1868.5,0.53436609]
[1680653325648,2.99394349,1868.6,1868.5,0.53436609]
[1680653327066,2.99394349,1868.6,1868.5,0.53156879]
[1680653334978,0.656,1868.8,1868.5,0.53156879]
[1680653335173,2.99602218,1868.7,1868.5,0.53156879]
[1680653340795,2.99602218,1868.7,1868.5,0.43156879]
[1680653346095,3.26358218,1868.7,1868.5,0.43156879]
[1680653346269,0.29960222,1868.6,1868.5,0.43156879]
[1680653346592,3.2956244,1868.6,1868.5,0.43156879]
[1680653351917,2.99602218,1868.6,1868.5,0.43156879]
[1680653352189,2.99602218,1868.6,1868.5,0.67239879]
[1680653352359,2.99602218,1868.6,1868.5,0.43156879]
[1680653352955,2.76602218,1868.6,1868.5,0.43156879]
[1680653353391,2.76602218,1868.6,1868.5,0.67239879]
[1680653353619,1.21678911,1868.8,1868.5,0.67239879]
[1680653353946,2.76602218,1868.7,1868.5,0.67239879]
[1680653357257,2.76602218,1868.7,1868.5,0.43156879]
[1680653358388,2.76602218,1868.7,1868.5,0.67239879]